[Event "Lilla Elite Hotels Open 2019"]
[Site "Vaxjo"]
[Date "2019.02.08"]
[Round "3.2"]
[White "Fridman, Arvid"]
[Black "Petersson, David"]
[Result "1-0"]
[ECO "A80"]
[WhiteElo "1219"]
[BlackElo "1465"]
[Annotator "NA RC"]
[PlyCount "87"]
[EventDate "2019.02.08"]
[EventType "swiss"]
[EventCountry "SWE"]
[SourceTitle "playchess.com"]
[Source "ChessBase"]
[SourceQuality "1"]
[TimeControl "900+5"]

1. d4 {[%emt 0:00:00]} f5 {[%emt 0:00:00]} 2. Nc3 {[%emt 0:00:00]} Nf6 {[%emt 0:00:00]} 3. Bf4 {[%emt 0:00:00]} e6 {[%emt 0:00:02]} 4. Nf3 {[%emt 0:00:01]} b6 {[%emt 0:00:08]} 5. e3 {[%emt 0:00:16]} Bb7 {[%emt 0:00:02]} 6. Be2 {[%emt 0:00:23]} Be7 {[%emt 0:00:19]} 7. O-O {[%emt 0:00:26]} O-O {[%emt 0:00:09]} 8. h3 {[%emt 0:00:29]} Ne4 {[%emt 0:00:28]} 9. Nxe4 {[%emt 0:00:32]} Bxe4 {[%emt 0:00:37]} 10. Nd2 {[%emt 0:00:14]} Bb7 {[%emt 0:00:11]} 11. Bf3 {[%emt 0:00:03]} Bxf3 {[%emt 0:00:13]} 12. Qxf3 {[%emt 0:00:19]} Nc6 {[%emt 0:00:34]} 13. c4 {[%emt 0:00:17]} Bg5 {[%emt 0:01:00]} 14. Qg3 {[%emt 0:01:14]} Bxf4 {[%emt 0:00:25]} 15. Qxf4 {[%emt 0:00:02]} Ne7 {[%emt 0:00:32]} 16. Qf3 {[%emt 0:01:16]} Rb8 {[%emt 0:00:33]} 17. a4 {[%emt 0:00:39]} a5 {[%emt 0:00:37]} 18. Rfb1 {[%emt 0:00:19]} Ng6 {[%emt 0:00:21]} 19. b4 {[%emt 0:00:19]} Qg5 {[%emt 0:00:30]} 20. Qg3 {[%emt 0:00:24]} Qxg3 {[%emt 0:00:09]} 21. fxg3 {[%emt 0:00:01]} Ne7 {[%emt 0:00:50]} 22. bxa5 {[%emt 0:00:05]} bxa5 {[%emt 0:00:01]} 23. Rb5 {[%emt 0:00:01]} Rxb5 {[%emt 0:00:37]} 24. axb5 {[%emt 0:00:03]} Ra8 {[%emt 0:00:01]} 25. Nb3 {[%emt 0:00:04]} c6 {[%emt 0:00:35]} 26. Rxa5 {[%emt 0:00:17]} Rb8 {[%emt 0:00:28]} 27. bxc6 {[%emt 0:01:19]} Rxb3 {[%emt 0:00:27]} 28. Ra8+ {[%emt 0:00:01]} Kf7 {[%emt 0:00:40]} 29. cxd7 {[%emt 0:00:01]} Nc6 {[%emt 0:00:29]} 30. d5 {[%emt 0:00:01]} exd5 {[%emt 0:00:44]} 31. cxd5 {[%emt 0:00:01]} Ne5 {[%emt 0:00:33]} 32. d8=Q {[%emt 0:00:37]} Nd3 {[%emt 0:00:54]} 33. Ra2 {[%emt 0:00:35]} Rb1+ {[%emt 0:00:46]} 34. Kh2 {[%emt 0:00:04]} Rf1 {[%emt 0:02:15]} 35. Qc7+ {[%emt 0:00:25]} Kg6 {[%emt 0:00:15]} 36. Qb6+ {[%emt 0:00:13]} Kh5 {[%emt 0:00:17]} 37. d6 {[%emt 0:00:19]} Nf2 {[%emt 0:00:41]} 38. Rxf2 {[%emt 0:00:20]} Rxf2 {[%emt 0:00:02]} 39. d7 {[%emt 0:00:04]} g5 {[%emt 0:00:13]} 40. d8=Q {[%emt 0:00:13]} g4 {[%emt 0:00:19]} 41. Qe8+ {[%emt 0:00:07]} Kg5 {[%emt 0:00:04]} 42. Qbd8+ {[%emt 0:00:09]} Kh6 {[%emt 0:00:06]} 43. Qh4+ {[%emt 0:00:12]} Kg7 {[%emt 0:00:06]} 44. Qg5# {[%emt 0:00:02]} 1-0

[Event "Lilla Elite Hotels Open 2019"]
[Site "Vaxjo"]
[Date "2019.02.08"]
[Round "3.4"]
[White "Alfredsson, Daniel"]
[Black "Ostlund, Tobias"]
[Result "1/2-1/2"]
[ECO "A20"]
[WhiteElo "1455"]
[BlackElo "1174"]
[Annotator "NA RC"]
[PlyCount "99"]
[EventDate "2019.02.08"]
[EventType "swiss"]
[EventCountry "SWE"]
[SourceTitle "playchess.com"]
[Source "ChessBase"]
[SourceQuality "1"]
[TimeControl "900+5"]

1. c4 {[%emt 0:00:11]} e5 {[%emt 0:00:09]} 2. g3 {[%emt 0:00:01]} Nf6 {[%emt 0:00:02]} 3. Bg2 {[%emt 0:00:01]} d5 {[%emt 0:00:07]} 4. cxd5 {[%emt 0:00:04]} Nxd5 {[%emt 0:00:02]} 5. Nc3 {[%emt 0:00:03]} Be6 {[%emt 0:00:15]} 6. a3 {[%emt 0:00:52]} Nc6 {[%emt 0:00:11]} 7. Nf3 {[%emt 0:01:02]} Bc5 {[%emt 0:00:36]} 8. b4 {[%emt 0:00:09]} Nxc3 {[%emt 0:00:12]} 9. dxc3 {[%emt 0:00:26]} Qxd1+ {[%emt 0:00:17]} 10. Kxd1 {[%emt 0:00:01]} Bxf2 {[%emt 0:02:05]} 11. e3 {[%emt 0:00:08]} Bc4 {[%emt 0:00:10]} 12. Nd2 {[%emt 0:00:24]} O-O-O {[%emt 0:00:15]} 13. Bf3 {[%emt 0:01:38]} Bxe3 {[%emt 0:00:20]} 14. Re1 {[%emt 0:00:15]} Bxd2 {[%emt 0:00:51]} 15. Bxd2 {[%emt 0:00:05]} Rhe8 {[%emt 0:00:38]} 16. Kc2 {[%emt 0:00:39]} f5 {[%emt 0:00:22]} 17. Bg5 {[%emt 0:00:45]} Rd7 {[%emt 0:00:31]} 18. Rad1 {[%emt 0:00:19]} e4 {[%emt 0:00:21]} 19. Bg2 {[%emt 0:00:35]} Bd3+ {[%emt 0:00:24]} 20. Kc1 {[%emt 0:00:17]} h6 {[%emt 0:00:07]} 21. Be3 {[%emt 0:00:15]} a5 {[%emt 0:00:42]} 22. Bf1 {[%emt 0:00:18]} axb4 {[%emt 0:00:34]} 23. Bxd3 {[%emt 0:00:29]} exd3 {[%emt 0:00:12]} 24. axb4 {[%emt 0:00:04]} Ne5 {[%emt 0:00:20]} 25. Bd4 {[%emt 0:00:15]} Rde7 {[%emt 0:00:38]} 26. Bxe5 {[%emt 0:00:39]} Rxe5 {[%emt 0:00:09]} 27. Rxe5 {[%emt 0:00:04]} Rxe5 {[%emt 0:00:02]} 28. Rxd3 {[%emt 0:00:02]} Re2 {[%emt 0:00:10]} 29. Rd2 {[%emt 0:00:03]} Re3 {[%emt 0:00:10]} 30. Kc2 {[%emt 0:00:02]} Rf3 {[%emt 0:00:06]} 31. Rd4 {[%emt 0:00:28]} Rf2+ {[%emt 0:00:15]} 32. Rd2 {[%emt 0:00:01]} Rxd2+ {[%emt 0:00:02]} 33. Kxd2 {[%emt 0:00:01]} Kd7 {[%emt 0:00:00]} 34. Ke3 {[%emt 0:00:22]} Ke6 {[%emt 0:00:02]} 35. Kd4 {[%emt 0:00:07]} g5 {[%emt 0:00:11]} 36. h3 {[%emt 0:00:09]} b6 {[%emt 0:00:28]} 37. c4 {[%emt 0:00:25]} c6 {[%emt 0:00:14]} 38. c5 {[%emt 0:00:23]} bxc5+ {[%emt 0:00:55]} 39. Kxc5 {[%emt 0:00:18]} Kd7 {[%emt 0:00:03]} 40. b5 {[%emt 0:00:13]} cxb5 {[%emt 0:00:04]} 41. Kxb5 {[%emt 0:00:01]} Kd6 {[%emt 0:00:03]} 42. Kc4 {[%emt 0:00:02]} Ke5 {[%emt 0:00:01]} 43. Kd3 {[%emt 0:00:01]} h5 {[%emt 0:00:05]} 44. g4 {[%emt 0:00:27]} h4 {[%emt 0:01:00]} 45. gxf5 {[%emt 0:00:08]} Kxf5 {[%emt 0:00:33]} 46. Ke3 {[%emt 0:00:05]} g4 {[%emt 0:00:09]} 47. hxg4+ {[%emt 0:00:03]} Kxg4 {[%emt 0:00:04]} 48. Kf2 {[%emt 0:00:01]} h3 {[%emt 0:00:31]} 49. Kg1 {[%emt 0:00:03]} Kg3 {[%emt 0:00:44]} 50. Kh1 1/2-1/2

[Event "Lilla Elite Hotels Open 2019"]
[Site "Vaxjo"]
[Date "2019.02.08"]
[Round "4.1"]
[White "Muntean, Adrian"]
[Black "Wennerlund, Elias"]
[Result "0-1"]
[ECO "B02"]
[WhiteElo "1402"]
[BlackElo "1494"]
[Annotator "NA RC"]
[PlyCount "152"]
[EventDate "2019.02.08"]
[EventType "swiss"]
[EventCountry "SWE"]
[SourceTitle "playchess.com"]
[Source "ChessBase"]
[SourceQuality "1"]
[TimeControl "900+5"]

1. e4 {[%emt 0:00:00]} Nf6 {[%emt 0:00:00]} 2. e5 {[%emt 0:00:03]} Nd5 {[%emt 0:00:00]} 3. c4 {[%emt 0:00:05]} Nb6 {[%emt 0:00:02]} 4. c5 {[%emt 0:00:18]} Nd5 {[%emt 0:00:01]} 5. Bc4 {[%emt 0:00:19]} e6 {[%emt 0:00:02]} 6. d4 {[%emt 0:00:05]} b6 {[%emt 0:00:04]} 7. cxb6 {[%emt 0:00:41]} Nxb6 {[%emt 0:00:16]} 8. Bb3 {[%emt 0:00:09]} Bb7 {[%emt 0:00:17]} 9. f3 {[%emt 0:00:02]} d6 {[%emt 0:00:19]} 10. Bf4 {[%emt 0:00:47]} Nc6 {[%emt 0:00:22]} 11. exd6 {[%emt 0:00:43]} Bxd6 {[%emt 0:00:10]} 12. Bxd6 {[%emt 0:00:13]} cxd6 {[%emt 0:00:03]} 13. Ne2 {[%emt 0:00:06]} Qg5 {[%emt 0:01:12]} 14. O-O {[%emt 0:00:41]} O-O {[%emt 0:00:31]} 15. Nbc3 {[%emt 0:00:06]} d5 {[%emt 0:01:28]} 16. f4 {[%emt 0:00:15]} Qf6 {[%emt 0:00:32]} 17. a3 {[%emt 0:00:32]} Na5 {[%emt 0:00:24]} 18. Bc2 {[%emt 0:00:03]} Nac4 {[%emt 0:00:05]} 19. Qd3 {[%emt 0:00:31]} g6 {[%emt 0:02:11]} 20. b3 {[%emt 0:01:10]} Nd6 {[%emt 0:00:41]} 21. Rf3 {[%emt 0:00:31]} a5 {[%emt 0:00:43]} 22. a4 {[%emt 0:00:43]} Ba6 {[%emt 0:00:49]} 23. Qd2 {[%emt 0:00:02]} Rfc8 {[%emt 0:00:59]} 24. Raf1 {[%emt 0:00:09]} Bxe2 {[%emt 0:01:28]} 25. Nxe2 {[%emt 0:00:11]} Ne4 {[%emt 0:00:38]} 26. Bxe4 {[%emt 0:00:25]} dxe4 {[%emt 0:00:01]} 27. Rh3 {[%emt 0:00:26]} Nd5 {[%emt 0:00:15]} 28. Ng3 {[%emt 0:02:02]} e3 {[%emt 0:00:10]} 29. Qe1 {[%emt 0:01:42]} Qxd4 {[%emt 0:00:04]} 30. Ne2 {[%emt 0:00:26]} Qc5 {[%emt 0:00:49]} 31. Qh4 {[%emt 0:00:24]} h5 {[%emt 0:00:19]} 32. Qg5 {[%emt 0:00:04]} Nc3 {[%emt 0:00:43]} 33. Qxc5 {[%emt 0:00:31]} Nxe2+ {[%emt 0:00:02]} 34. Kh1 {[%emt 0:00:05]} Rxc5 {[%emt 0:00:01]} 35. Rxe3 {[%emt 0:00:03]} Nd4 {[%emt 0:00:10]} 36. Rd1 {[%emt 0:00:10]} Rd5 {[%emt 0:00:15]} 37. h4 {[%emt 0:00:16]} Rb8 {[%emt 0:00:12]} 38. Rdd3 {[%emt 0:00:27]} Rbd8 {[%emt 0:00:32]} 39. Rc3 {[%emt 0:00:18]} Nf5 {[%emt 0:00:08]} 40. Rh3 {[%emt 0:00:21]} Rd4 {[%emt 0:00:08]} 41. g3 {[%emt 0:00:21]} Rd3 {[%emt 0:00:13]} 42. Rxd3 {[%emt 0:00:23]} Rxd3 {[%emt 0:00:01]} 43. b4 {[%emt 0:00:14]} axb4 {[%emt 0:00:03]} 44. Kg2 {[%emt 0:00:13]} Ra3 {[%emt 0:00:01]} 45. Rh1 {[%emt 0:00:05]} Rxa4 {[%emt 0:00:04]} 46. Rb1 {[%emt 0:00:06]} Nd4 {[%emt 0:00:09]} 47. Kf2 {[%emt 0:00:05]} b3 {[%emt 0:00:01]} 48. Ke3 {[%emt 0:00:03]} Nc2+ {[%emt 0:00:37]} 49. Kd3 {[%emt 0:00:15]} Nb4+ {[%emt 0:00:13]} 50. Kc3 {[%emt 0:00:06]} Nd5+ {[%emt 0:00:04]} 51. Kb2 {[%emt 0:00:23]} Re4 {[%emt 0:00:08]} 52. Rg1 {[%emt 0:00:06]} Re3 {[%emt 0:00:04]} 53. Rg2 {[%emt 0:00:13]} Rc3 {[%emt 0:00:05]} 54. Rg1 {[%emt 0:00:01]} Rf3 {[%emt 0:00:09]} 55. Rg2 {[%emt 0:00:01]} Ne3 {[%emt 0:00:01]} 56. Rg1 {[%emt 0:00:13]} Rf1 {[%emt 0:00:01]} 57. Rxf1 {[%emt 0:00:07]} Nxf1 {[%emt 0:00:01]} 58. Kxb3 {[%emt 0:00:02]} Nxg3 {[%emt 0:00:01]} 59. Kc3 {[%emt 0:00:01]} Nf5 {[%emt 0:00:01]} 60. Kd3 {[%emt 0:00:02]} Nxh4 {[%emt 0:00:01]} 61. Ke3 {[%emt 0:00:02]} Nf5+ {[%emt 0:00:01]} 62. Kf3 {[%emt 0:00:01]} h4 {[%emt 0:00:01]} 63. Kg4 {[%emt 0:00:02]} Kg7 {[%emt 0:00:03]} 64. Kh3 {[%emt 0:00:04]} Kf6 {[%emt 0:00:01]} 65. Kg4 {[%emt 0:00:01]} e5 {[%emt 0:00:01]} 66. fxe5+ {[%emt 0:00:02]} Kxe5 {[%emt 0:00:01]} 67. Kh3 {[%emt 0:00:01]} Kf4 {[%emt 0:00:01]} 68. Kg2 {[%emt 0:00:01]} g5 {[%emt 0:00:04]} 69. Kh3 {[%emt 0:00:02]} g4+ {[%emt 0:00:02]} 70. Kg2 {[%emt 0:00:01]} Ne3+ {[%emt 0:00:04]} 71. Kh2 {[%emt 0:00:02]} Ke4 {[%emt 0:00:02]} 72. Kg1 {[%emt 0:00:04]} f5 {[%emt 0:00:01]} 73. Kh2 {[%emt 0:00:01]} f4 {[%emt 0:00:01]} 74. Kg1 {[%emt 0:00:01]} f3 {[%emt 0:00:02]} 75. Kf2 {[%emt 0:00:01]} g3+ {[%emt 0:00:03]} 76. Kg1 {[%emt 0:00:01]} f2+ {[%emt 0:00:01]} 0-1

[Event "Lilla Elite Hotels Open 2019"]
[Site "Vaxjo"]
[Date "2019.02.08"]
[Round "4.2"]
[White "Nabbing, Oscar"]
[Black "Fridman, Arvid"]
[Result "0-1"]
[ECO "C25"]
[WhiteElo "1456"]
[BlackElo "1219"]
[Annotator "NA RC"]
[PlyCount "78"]
[EventDate "2019.02.08"]
[EventType "swiss"]
[EventCountry "SWE"]
[SourceTitle "playchess.com"]
[Source "ChessBase"]
[SourceQuality "1"]
[TimeControl "900+5"]

1. e4 {[%emt 0:00:05]} e5 {[%emt 0:00:00]} 2. Nc3 {[%emt 0:00:07]} Nc6 {[%emt 0:00:03]} 3. f4 {[%emt 0:00:07]} d6 {[%emt 0:00:10]} 4. Nf3 {[%emt 0:00:23]} Bg4 {[%emt 0:00:01]} 5. Bb5 {[%emt 0:00:37]} Nf6 {[%emt 0:00:43]} 6. O-O {[%emt 0:00:39]} a6 {[%emt 0:00:15]} 7. Bxc6+ {[%emt 0:00:15]} bxc6 {[%emt 0:00:01]} 8. fxe5 {[%emt 0:00:26]} dxe5 {[%emt 0:00:02]} 9. d3 {[%emt 0:00:13]} Bc5+ {[%emt 0:00:08]} 10. Kh1 {[%emt 0:00:13]} O-O {[%emt 0:00:23]} 11. Qe1 {[%emt 0:00:24]} Re8 {[%emt 0:00:28]} 12. Qh4 {[%emt 0:00:57]} h6 {[%emt 0:02:03]} 13. h3 {[%emt 0:00:31]} Bxf3 {[%emt 0:00:25]} 14. Rxf3 {[%emt 0:00:04]} Nd7 {[%emt 0:00:53]} 15. Qg3 {[%emt 0:00:25]} Kf8 {[%emt 0:00:31]} 16. Bd2 {[%emt 0:00:37]} Rb8 {[%emt 0:00:21]} 17. Raf1 {[%emt 0:00:02]} f6 {[%emt 0:00:31]} 18. Qh4 {[%emt 0:00:15]} Rxb2 {[%emt 0:00:35]} 19. Bxh6 {[%emt 0:00:11]} gxh6 {[%emt 0:00:05]} 20. Qxh6+ {[%emt 0:00:03]} Ke7 {[%emt 0:00:28]} 21. Qg7+ {[%emt 0:01:27]} Ke6 {[%emt 0:00:39]} 22. Rxf6+ {[%emt 0:00:02]} Nxf6 {[%emt 0:00:23]} 23. Na4 {[%emt 0:00:13]} Rxc2 {[%emt 0:00:14]} 24. g4 {[%emt 0:00:18]} Rg8 {[%emt 0:00:52]} 25. Qh6 {[%emt 0:00:04]} Rh8 {[%emt 0:00:18]} 26. Nxc5+ {[%emt 0:00:14]} Rxc5 {[%emt 0:00:01]} 27. Qe3 {[%emt 0:00:03]} Qd4 {[%emt 0:00:46]} 28. Qf3 {[%emt 0:00:02]} Rf8 {[%emt 0:00:26]} 29. g5 {[%emt 0:00:36]} Nd7 {[%emt 0:00:18]} 30. Qg4+ {[%emt 0:00:14]} Kd6 {[%emt 0:00:03]} 31. Rxf8 {[%emt 0:00:31]} Nxf8 {[%emt 0:00:02]} 32. Qf3 {[%emt 0:00:01]} Ne6 {[%emt 0:00:18]} 33. g6 {[%emt 0:00:16]} Rc1+ {[%emt 0:00:03]} 34. Kh2 {[%emt 0:00:01]} Qb2+ {[%emt 0:00:02]} 35. Kg3 {[%emt 0:00:09]} Rg1+ {[%emt 0:00:07]} 36. Kh4 {[%emt 0:00:01]} Rxg6 {[%emt 0:00:14]} 37. Kh5 {[%emt 0:00:41]} Qg2 {[%emt 0:00:20]} 38. Qf5 {[%emt 0:00:51]} Rg5+ {[%emt 0:00:04]} 39. Qxg5 {[%emt 0:00:03]} Qxg5# {[%emt 0:00:02]} 0-1

[Event "Lilla Elite Hotels Open 2019"]
[Site "Vaxjo"]
[Date "2019.02.08"]
[Round "4.3"]
[White "Ostlund, Tobias"]
[Black "Seo, Jung Hyun"]
[Result "0-1"]
[ECO "C11"]
[WhiteElo "1174"]
[BlackElo "1534"]
[Annotator "NA RC"]
[PlyCount "66"]
[EventDate "2019.02.08"]
[EventType "swiss"]
[EventCountry "SWE"]
[SourceTitle "playchess.com"]
[Source "ChessBase"]
[SourceQuality "1"]
[TimeControl "900+5"]

1. e4 {[%emt 0:00:00]} e6 {[%emt 0:00:00]} 2. Nf3 {[%emt 0:00:01]} d5 {[%emt 0:00:00]} 3. Nc3 {[%emt 0:00:02]} Nf6 {[%emt 0:00:00]} 4. e5 {[%emt 0:00:06]} Nfd7 {[%emt 0:00:00]} 5. d4 {[%emt 0:00:03]} c5 {[%emt 0:00:00]} 6. Be3 {[%emt 0:00:15]} Nc6 {[%emt 0:00:04]} 7. b3 {[%emt 0:00:55]} Qa5 {[%emt 0:00:38]} 8. Qd2 {[%emt 0:00:19]} cxd4 {[%emt 0:00:11]} 9. Bxd4 {[%emt 0:00:25]} Nxd4 {[%emt 0:00:02]} 10. Nxd4 {[%emt 0:00:52]} Bb4 {[%emt 0:00:28]} 11. Nde2 {[%emt 0:00:48]} b6 {[%emt 0:00:58]} 12. f4 {[%emt 0:01:44]} Ba6 {[%emt 0:00:05]} 13. Kf2 {[%emt 0:01:02]} Bxe2 {[%emt 0:00:06]} 14. Qxe2 {[%emt 0:00:31]} Bxc3 {[%emt 0:00:01]} 15. Rc1 {[%emt 0:00:12]} Bd4+ {[%emt 0:01:29]} 16. Kg3 {[%emt 0:00:33]} Qc3+ {[%emt 0:00:02]} 17. Kh4 {[%emt 0:00:19]} Be3 {[%emt 0:00:39]} 18. Rd1 {[%emt 0:00:21]} Bxf4 {[%emt 0:00:02]} 19. Qg4 {[%emt 0:00:10]} g5+ {[%emt 0:00:12]} 20. Kh5 {[%emt 0:00:22]} Qxe5 {[%emt 0:00:14]} 21. Bb5 {[%emt 0:00:16]} Rd8 {[%emt 0:00:55]} 22. h4 {[%emt 0:00:26]} h6 {[%emt 0:00:14]} 23. Rhe1 {[%emt 0:00:17]} Qf6 {[%emt 0:00:03]} 24. Qh3 {[%emt 0:01:16]} Qg6+ {[%emt 0:00:21]} 25. Kg4 {[%emt 0:00:06]} f5+ {[%emt 0:00:01]} 26. Kf3 {[%emt 0:00:29]} g4+ {[%emt 0:00:02]} 27. Kxf4 {[%emt 0:00:12]} gxh3 {[%emt 0:00:03]} 28. Bxd7+ {[%emt 0:00:09]} Rxd7 {[%emt 0:00:04]} 29. Ke5 {[%emt 0:00:18]} Ke7 {[%emt 0:00:06]} 30. Kf4 {[%emt 0:00:22]} hxg2 {[%emt 0:00:03]} 31. Rg1 {[%emt 0:00:06]} Qg4+ {[%emt 0:00:01]} 32. Ke3 {[%emt 0:00:04]} Qe4+ {[%emt 0:00:02]} 33. Kf2 {[%emt 0:00:03]} Rg8 {[%emt 0:00:01]} 0-1

[Event "Lilla Elite Hotels Open 2019"]
[Site "Vaxjo"]
[Date "2019.02.08"]
[Round "4.4"]
[White "Petersson, David"]
[Black "Alfredsson, Daniel"]
[Result "1-0"]
[ECO "D00"]
[WhiteElo "1465"]
[BlackElo "1455"]
[Annotator "NA RC"]
[PlyCount "79"]
[EventDate "2019.02.08"]
[EventType "swiss"]
[EventCountry "SWE"]
[SourceTitle "playchess.com"]
[Source "ChessBase"]
[SourceQuality "1"]
[TimeControl "900+5"]

1. d4 {[%emt 0:00:00]} d5 {[%emt 0:00:05]} 2. Bf4 {[%emt 0:00:00]} Nf6 {[%emt 0:00:09]} 3. e3 {[%emt 0:00:00]} c5 {[%emt 0:00:09]} 4. c3 {[%emt 0:00:18]} Nc6 {[%emt 0:00:05]} 5. Nd2 {[%emt 0:00:19]} Bf5 {[%emt 0:00:13]} 6. Ngf3 {[%emt 0:00:46]} e6 {[%emt 0:00:10]} 7. Ne5 {[%emt 0:00:27]} Bd6 {[%emt 0:00:30]} 8. Ndf3 {[%emt 0:00:08]} Qc7 {[%emt 0:00:45]} 9. Bd3 {[%emt 0:00:53]} Bxd3 {[%emt 0:00:12]} 10. Qxd3 {[%emt 0:00:02]} cxd4 {[%emt 0:00:39]} 11. cxd4 {[%emt 0:01:15]} Nd7 {[%emt 0:01:48]} 12. Nxd7 {[%emt 0:01:59]} Bxf4 {[%emt 0:00:48]} 13. exf4 {[%emt 0:00:34]} Kxd7 {[%emt 0:00:16]} 14. Ne5+ {[%emt 0:00:16]} Ke7 {[%emt 0:00:11]} 15. O-O {[%emt 0:00:20]} f6 {[%emt 0:00:37]} 16. Nxc6+ {[%emt 0:00:06]} Qxc6 {[%emt 0:00:21]} 17. Rfc1 {[%emt 0:00:31]} Qb6 {[%emt 0:00:42]} 18. Qa3+ {[%emt 0:00:58]} Kd7 {[%emt 0:01:10]} 19. Qa4+ {[%emt 0:01:04]} Ke7 {[%emt 0:00:32]} 20. Qa3+ {[%emt 0:00:04]} Kf7 {[%emt 0:02:37]} 21. Qc3 {[%emt 0:00:51]} Rac8 {[%emt 0:00:25]} 22. Qd2 {[%emt 0:00:05]} Rc4 {[%emt 0:01:09]} 23. Rxc4 {[%emt 0:00:26]} dxc4 {[%emt 0:00:01]} 24. Rc1 {[%emt 0:01:05]} Rc8 {[%emt 0:00:41]} 25. Qc3 {[%emt 0:00:21]} Rd8 {[%emt 0:00:38]} 26. Rd1 {[%emt 0:01:28]} Qb5 {[%emt 0:00:53]} 27. Rc1 {[%emt 0:01:13]} Qd5 {[%emt 0:00:15]} 28. Qxc4 {[%emt 0:00:34]} Qxd4 {[%emt 0:00:05]} 29. Qxd4 {[%emt 0:00:09]} Rxd4 {[%emt 0:00:04]} 30. g3 {[%emt 0:00:04]} Ke7 {[%emt 0:00:08]} 31. Rc7+ {[%emt 0:00:07]} Rd7 {[%emt 0:00:02]} 32. Rxd7+ {[%emt 0:00:19]} Kxd7 {[%emt 0:00:01]} 33. Kf1 {[%emt 0:00:02]} Kd6 {[%emt 0:00:03]} 34. Ke2 {[%emt 0:00:01]} Kd5 {[%emt 0:00:15]} 35. Kd3 {[%emt 0:00:04]} b5 {[%emt 0:00:09]} 36. b4 {[%emt 0:00:21]} e5 {[%emt 0:00:37]} 37. fxe5 {[%emt 0:00:15]} fxe5 {[%emt 0:00:13]} 38. f3 {[%emt 0:00:03]} g5 {[%emt 0:00:10]} 39. h3 {[%emt 0:00:14]} h6 40. g4 1-0

[Event "Lilla Elite Hotels Open 2019"]
[Site "Vaxjo"]
[Date "2019.02.09"]
[Round "5.1"]
[White "Wennerlund, Elias"]
[Black "Fridman, Arvid"]
[Result "1-0"]
[ECO "C25"]
[WhiteElo "1494"]
[BlackElo "1219"]
[Annotator "NA RC"]
[PlyCount "25"]
[EventDate "2019.02.08"]
[EventType "swiss"]
[EventCountry "SWE"]
[SourceTitle "playchess.com"]
[Source "ChessBase"]
[SourceQuality "1"]
[TimeControl "5400+30"]

1. e4 {[%emt 0:00:00]} e5 {[%emt 0:00:00]} 2. Nc3 {[%emt 0:00:00]} Nc6 {[%emt 0:00:00]} 3. Bc4 {[%emt 0:00:00]} Bc5 {[%emt 0:00:02]} 4. Qg4 {[%emt 0:00:00]} Qf6 {[%emt 0:02:30]} 5. Nd5 {[%emt 0:00:04]} Qxf2+ {[%emt 0:05:47]} 6. Kd1 {[%emt 0:00:06]} Qd4 {[%emt 0:00:34]} 7. d3 {[%emt 0:00:39]} Kf8 {[%emt 0:01:21]} 8. c3 {[%emt 0:02:33]} Qf2 {[%emt 0:00:41]} 9. Nh3 {[%emt 0:00:09]} h5 {[%emt 0:05:02]} 10. Qg5 {[%emt 0:09:28]} f6 {[%emt 0:00:36]} 11. Qg6 {[%emt 0:05:28]} Rh6 {[%emt 0:00:24]} 12. Bxh6 {[%emt 0:00:15]} Qxb2 {[%emt 0:01:24]} 13. Bxg7# {[%emt 0:00:07]} 1-0

[Event "Lilla Elite Hotels Open 2019"]
[Site "Vaxjo"]
[Date "2019.02.09"]
[Round "5.2"]
[White "Seo, Jung Hyun"]
[Black "Mossblad, Edvin"]
[Result "1-0"]
[ECO "B34"]
[WhiteElo "1534"]
[BlackElo "1494"]
[Annotator "NA"]
[PlyCount "115"]
[EventDate "2019.02.08"]
[EventType "swiss"]
[EventCountry "SWE"]
[SourceTitle "playchess.com"]
[Source "ChessBase"]
[SourceQuality "1"]
[TimeControl "5400+30"]

1. e4 {[%emt 0:00:00]} c5 {[%emt 0:00:00]} 2. Nf3 {[%emt 0:00:00]} Nc6 {[%emt 0:00:00]} 3. Nc3 {[%emt 0:00:01]} g6 {[%emt 0:00:46]} 4. d4 {[%emt 0:00:27]} cxd4 {[%emt 0:00:13]} 5. Nxd4 {[%emt 0:00:23]} Bg7 {[%emt 0:00:31]} 6. Be3 {[%emt 0:00:10]} a6 {[%emt 0:01:35]} 7. Qd2 {[%emt 0:06:10]} e6 {[%emt 0:15:10]} 8. Be2 {[%emt 0:10:39]} d5 {[%emt 0:00:05]} 9. exd5 {[%emt 0:10:17]} exd5 {[%emt 0:01:29]} 10. O-O {[%emt 0:00:41]} Nge7 {[%emt 0:03:16]} 11. Bf3 {[%emt 0:05:31]} Be6 {[%emt 0:03:36]} 12. Rfe1 {[%emt 0:11:26]} O-O {[%emt 0:04:19]} 13. Nxe6 {[%emt 0:14:45]} fxe6 {[%emt 0:00:17]} 14. Bg5 {[%emt 0:00:30]} Nd4 {[%emt 0:04:03]} 15. Bxd5 {[%emt 0:02:45]} Rf7 {[%emt 0:04:55]} 16. Bxe6 {[%emt 0:01:49]} Nxe6 {[%emt 0:01:09]} 17. Rxe6 {[%emt 0:00:03]} Qxd2 {[%emt 0:03:20]} 18. Bxd2 {[%emt 0:01:15]} Nf5 {[%emt 0:07:14]} 19. Rc1 {[%emt 0:09:01]} Rd7 {[%emt 0:01:54]} 20. Bg5 {[%emt 0:04:12]} Rc8 {[%emt 0:01:04]} 21. Bf6 {[%emt 0:06:22]} Nd4 {[%emt 0:04:30]} 22. Bxd4 {[%emt 0:00:16]} Bxd4 {[%emt 0:04:51]} 23. Nd1 {[%emt 0:03:07]} Rcd8 {[%emt 0:08:39]} 24. Re1 {[%emt 0:03:36]} Bg7 {[%emt 0:01:24]} 25. Nc3 {[%emt 0:02:23]} Bxc3 {[%emt 0:05:52]} 26. bxc3 {[%emt 0:00:06]} Rc7 {[%emt 0:00:29]} 27. Kf1 {[%emt 0:00:54]} Rxc3 {[%emt 0:02:41]} 28. Re2 {[%emt 0:00:45]} b5 {[%emt 0:00:58]} 29. Ke1 {[%emt 0:00:11]} Rdc8 {[%emt 0:01:47]} 30. Kd2 {[%emt 0:00:30]} b4 {[%emt 0:01:03]} 31. Re3 {[%emt 0:00:30]} R3c5 {[%emt 0:01:16]} 32. a3 {[%emt 0:01:07]} a5 {[%emt 0:03:06]} 33. axb4 {[%emt 0:00:44]} axb4 {[%emt 0:00:01]} 34. f4 {[%emt 0:00:36]} Kf7 {[%emt 0:01:19]} 35. g3 {[%emt 0:00:16]} Kf6 {[%emt 0:01:01]} 36. h3 {[%emt 0:00:50]} h5 {[%emt 0:00:59]} 37. g4 {[%emt 0:02:25]} Rc4 {[%emt 0:01:15]} 38. Rf3 {[%emt 0:00:35]} h4 {[%emt 0:05:11]} 39. f5 {[%emt 0:02:21]} g5 {[%emt 0:00:36]} 40. Re3 {[%emt 0:00:18]} R8c6 {[%emt 0:01:11]} 41. Rd3 {[%emt 0:01:18]} Kf7 {[%emt 0:01:41]} 42. Ke3 {[%emt 0:01:00]} Rxc2 {[%emt 0:01:01]} 43. Rxc2 {[%emt 0:00:07]} Rxc2 {[%emt 0:00:01]} 44. Kd4 {[%emt 0:00:15]} b3 {[%emt 0:00:29]} 45. Rxb3 {[%emt 0:00:02]} Rc7 {[%emt 0:01:15]} 46. Rd3 {[%emt 0:00:14]} Kf6 {[%emt 0:00:47]} 47. Ke4 {[%emt 0:00:07]} Rc1 {[%emt 0:01:28]} 48. Rd6+ {[%emt 0:00:09]} Kf7 {[%emt 0:00:02]} 49. Rg6 {[%emt 0:00:10]} Rc3 {[%emt 0:00:17]} 50. Rxg5 {[%emt 0:00:09]} Rxh3 {[%emt 0:00:04]} 51. Rh5 {[%emt 0:00:07]} Rh1 {[%emt 0:01:04]} 52. Kf4 {[%emt 0:00:06]} Kf6 {[%emt 0:02:46]} 53. g5+ {[%emt 0:00:07]} Kg7 {[%emt 0:00:11]} 54. Kg4 {[%emt 0:00:13]} Ra1 {[%emt 0:01:21]} 55. f6+ {[%emt 0:00:07]} Kf7 {[%emt 0:00:43]} 56. Rxh4 {[%emt 0:00:16]} Ra5 {[%emt 0:00:41]} 57. Rh7+ {[%emt 0:00:25]} Kg6 {[%emt 0:00:02]} 58. Rg7# 1-0